Cogmind - Beta 11.1 @@@ ROGUE MODE // 2022.06.03 @ 17:47:27 Player: Smie Result: Destroyed by G-47 Trooper with Particle Gun Performance ------------- Evolutions (2) 1000 Regions Visited (5) 1000 Robots Destroyed (72) 360 Value Destroyed (2129) 2129 Prototype IDs (0) 0 Alien Tech Used (0) 0 Bonus (224) 224 TOTAL SCORE: 4713 Bonus ------- High Alert Combat Kills 224 Cogmind --------- Core Integrity 0/550 Matter 130/300 Energy 160/160 System Corruption 0% Temperature Cool (9) Movement Treading (245) Ox1 Location -8/Materials Parts ------- > --- POWER (1) -------- Light Nuclear Core > --- PROPULSION (2) --- Light Treads Armored Treads > --- UTILITY (6) ------ Improved Heat Sink Large Storage Unit Improved Signal Interpreter Advanced Terrain Scan Processor Weapon Cycler Hardened Medium Armor Plating > --- WEAPON (2) ------- Minigun Minigun > --- INVENTORY (15) --- Light Ion Engine Light Ion Engine Light Treads Light Treads Light Treads Wheel Structural Scanner Improved Terrain Scanner Targeting Computer Advanced Targeting Computer Propulsion Shielding Hardened Medium Armor Plating Minigun Minigun Grenade Launcher Peak State ------------ > --- POWER ------------ Light Nuclear Core > --- PROPULSION ------- Light Treads Armored Treads > --- UTILITY ---------- Improved Heat Sink Large Storage Unit Improved Signal Interpreter Advanced Terrain Scan Processor Weapon Cycler Hardened Medium Armor Plating > --- WEAPON ----------- Minigun Minigun > --- INVENTORY -------- Light Ion Engine Light Ion Engine Light Treads Light Treads Light Treads Wheel Improved Heat Sink Structural Scanner Improved Terrain Scanner Targeting Computer Advanced Targeting Computer Propulsion Shielding Minigun Minigun Grenade Launcher [Rating: 33] Favorites ----------- Power Light Nuclear Core Engine Light Ion Engine Power Core Light Nuclear Core Propulsion Light Treads Treads Light Treads Leg Aluminum Leg Utility Improved Heat Sink Device Improved Heat Sink Storage Large Storage Unit Processor Improved Signal Interpreter Protection Propulsion Shielding Weapon Assault Cannon Energy Gun Particle Gun Ballistic Gun Light Assault Rifle Ballistic Cannon Assault Cannon Launcher Grenade Launcher Build | -11 -10 -10 -9 -9 -8 ------- Run | Scr Mat Min Mat Min Mat Slots Evolved 4 | . . . 2 . 2 Power . | . . . . . . Propulsion . | . . . . . . Utility 4 | . . . 2 . 2 Weapon . | . . . . . . Parts Attached 83 | 6 3 1 21 1 51 Power 13 | 1 1 1 2 . 8 Engine 6 | 1 1 1 2 . 1 Core 7 | . . . . . 7 Reactor . | . . . . . . Propulsion 17 | 2 1 . 6 . 8 Treads 15 | 2 . . 5 . 8 Leg 2 | . 1 . 1 . . Wheel . | . . . . . . Hover . | . . . . . . Flight . | . . . . . . Utility 28 | 1 1 . 7 1 18 Device 14 | . . . 2 . 12 Storage 2 | 1 . . 1 . . Processor 4 | . 1 . . 1 2 Hackware . | . . . . . . Protection 8 | . . . 4 . 4 Artifact . | . . . . . . Weapon 25 | 2 . . 6 . 17 Energy Gun 5 | . . . 1 . 4 Energy Cannon . | . . . . . . Ballistic Gun 11 | 2 . . 3 . 6 Ballistic Cannon 8 | . . . 2 . 6 Launcher 1 | . . . . . 1 Special Weapon . | . . . . . . Impact Weapon . | . . . . . . Slashing Weapon . | . . . . . . Piercing Weapon . | . . . . . . Special Melee Weapon . | . . . . . . Unidentified Prototypes . | . . . . . . Parts Lost 29 | . 1 . 3 1 24 Power 6 | . 1 . . . 5 Propulsion 4 | . . . . . 4 Utility 10 | . . . 2 1 7 Weapon 9 | . . . 1 . 8 Highest Loss Streak 6 | . 1 . 1 1 6 To Critical Strikes 1 | . . . . . 1 Average Slot Usage (%) 95 | . 94 100 97 95 93 Engine 5 | . 12 14 11 11 . Core 4 | . . . . . 7 Treads 17 | . 23 14 14 22 17 Leg 3 | . 4 14 7 . . Device 12 | . . . 10 11 19 Storage 10 | . 14 14 11 11 9 Processor 12 | . 11 14 5 3 16 Protection 6 | . . . 14 14 5 Energy Gun 2 | . . . 2 . 3 Ballistic Gun 12 | . 28 28 15 . 7 Ballistic Cannon 5 | . . . 3 22 6 Naked Turns . | . . . . . . Heaviest Build 41 | 13 13 13 40 40 41 Greatest Support 40 | 40 40 20 40 40 40 Greatest Overweight (x) 2 | . . . 2 . 1 Average Overweight (x) . | . . . . . . Largest Inventory Capacity 15 | 8 8 8 15 15 15 Average Capacity 12 | 7 8 8 8 15 15 Most Carried 15 | 6 8 8 8 7 15 Average Carried 10 | 3 7 7 7 6 13 Final Capacity 15 | 8 8 8 15 15 15 Final Carried 15 | 6 8 8 7 7 15 Class Distribution -------------------- 71% | Mutant 26% | Scavenger-Mutant Dominant Class ---------------- Mutant | -10/Materials Mutant | -10/Mines Mutant | -9/Materials Mutant | -9/Mines Mutant | -8/Materials Resources | -11 -10 -10 -9 -9 -8 ----------- Run | Scr Mat Min Mat Min Mat Matter Collected 2358 | 206 143 139 282 310 1278 Remotely . | . . . . . . Salvage Created 2482 | . 127 118 546 122 1569 Parts 127 | . 10 10 27 . 80 Haulers Intercepted 1 | . . . . . 1 Recyclers Shooed 3 | . . 2 . . 1 Parts Field Recycled . | . . . . . . Retrieved Matter . | . . . . . . Parts Self-Destructed . | . . . . . . Prevented . | . . . . . . Kills | -11 -10 -10 -9 -9 -8 ------- Run | Scr Mat Min Mat Min Mat Combat Hostiles Destroyed 76 | . 4 . 14 15 43 Guns 34 | . 4 . 14 . 16 Cannons 38 | . . . . 15 23 AOE 3 | . . . . . 3 Classes Destroyed 12 | . 3 2 2 1 4 Worker 4 | . 1 2 . . 1 Builder 1 | . . . . . 1 Tunneler 1 | . . 1 . . . Hauler 1 | . . . . . 1 Recycler 3 | . . 1 1 . 1 Watcher 2 | . . . . . 2 Swarmer 19 | . 2 . 7 . 10 Grunt 29 | . 2 . 4 . 23 Brawler 1 | . . . 1 . . Sentry 11 | . . . 2 . 9 Hunter 1 | . . . . . 1 Assembled 15 | . . . . 15 . Best Kill Streak 12 | . 3 2 6 12 8 Combat Bots Only 12 | . 3 . 3 12 7 Max Kills in Single Turn 2 | . 1 1 1 1 2 Gunslinging . | . . . . . . Exploded 2 | . . . . . 2 Melee . | . . . . . . Uniques/NPCs Destroyed . | . . . . . . Combat | -11 -10 -10 -9 -9 -8 -------- Run | Scr Mat Min Mat Min Mat Damage Taken 5579 | . 400 . 733 624 3822 Core 723 | . 34 . 69 63 557 Absorbed by Shields . | . . . . . . Redirected to Shielding 272 | . . . 50 52 170 Regen/Repaired (Parts) 142 | . . . . . 142 Core Remaining (%) 84 | 100 . 86 . 67 . Volleys Fired 297 | . 26 10 58 21 182 Largest 2 | . 2 2 2 2 2 Hottest 134 | . 40 40 85 88 134 Shots Fired 535 | . 52 20 114 42 307 Gun 354 | . 52 20 114 . 168 Cannon 179 | . . . . 42 137 Launcher 2 | . . . . . 2 Special . | . . . . . . Kinetic 449 | . 52 20 100 42 235 Thermal 84 | . . . 14 . 70 Explosive 2 | . . . . . 2 Electromagnetic . | . . . . . . Robot Hit Streak 21 | . 4 6 11 9 21 Robot Miss Streak 6 | . 3 1 6 4 4 Penetration Max . | . . . . . . Secondary Targets 3 | . . . 3 . . Max Gunslinging Chain 1 | . . . 1 . . Shots Hit Robots 348 | . 24 13 62 23 226 Core Hits 139 | . 12 7 26 14 80 Critical Kills . | . . . . . . Critical Parts Destroyed . | . . . . . . Critical Strikes 9 | . . . . 1 8 Burn 3 | . . . . . 3 Blast 6 | . . . . 1 5 Melee Attacks . | . . . . . . Impact . | . . . . . . Slashing . | . . . . . . Piercing . | . . . . . . Sneak Attacks . | . . . . . . Combat Hostiles . | . . . . . . Follow-up Attacks . | . . . . . . Damage Inflicted 6209 | . 264 135 733 564 4513 Guns 3315 | . 264 135 732 . 2184 Cannons 2731 | . . . . 564 2167 Explosions 162 | . . . . . 162 Melee . | . . . . . . Ramming 1 | . . . 1 . . Kinetic 5022 | . 264 135 632 564 3427 Thermal 1024 | . . . 100 . 924 Explosive 162 | . . . . . 162 Electromagnetic . | . . . . . . Impact . | . . . . . . Slashing . | . . . . . . Piercing . | . . . . . . Highest Corruption 3 | . . . 3 3 . Average Corruption 3 | . . . 3 3 . Corruption Purged . | . . . . . . Corruption Blocked . | . . . . . . Effects 13 | . . . 8 5 . Matter Fused 4 | . . . 3 1 . Heat Flow Errors 3 | . . . 3 . . Energy Discharges 2 | . . . 1 1 . Data Loss (minor) 3 | . . . 1 2 . Alerts 1 | . . . . 1 . Overload Shots . | . . . . . . Overflow Damage 70 | . . . . 26 44 Projectiles 70 | . . . . 26 44 Explosions . | . . . . . . Melee . | . . . . . . Knockbacks 29 | . . . . 8 21 Impact . | . . . . . . Kinetic 29 | . . . . 8 21 Secondary . | . . . . . . Self-Inflicted Damage 58 | . . . . . 58 Shots 2 | . . . . . 2 Rammed 2 | . . . 1 . 1 Targets Rammed 2 | . . . 1 . 1 Kicked . | . . . . . . Crushed . | . . . . . . Highest Temperature 420 | . 12 . 420 400 250 Average Temperature 138 | . 8 . 136 214 85 Received Heat Transfer 2009 | . 126 . 159 140 1584 Effects 7 | . . . 3 4 . Shutdowns 3 | . . . 1 2 . Energy Bleed 2 | . . . 1 1 . Interference 1 | . . . 1 . . Damage (minor) 1 | . . . . 1 . Siege Activations . | . . . . . . Robots Corrupted . | . . . . . . Combat Hostiles . | . . . . . . Parts Fried . | . . . . . . Impact Corruptions . | . . . . . . Robots Melted 1 | . . . . . 1 Combat Hostiles 1 | . . . . . 1 Parts Melted 6 | . . . . . 6 Heat Transferred 2553 | . . . 222 . 2331 Parts Sabotaged . | . . . . . . Parts Stolen . | . . . . . . Parts Stripped . | . . . . . . Power Chain Reactions . | . . . . . . Missiles Intercepted . | . . . . . . Alert | -11 -10 -10 -9 -9 -8 ------- Run | Scr Mat Min Mat Min Mat Peak Influence 651 | . 130 20 189 20 651 Initial 7 | . . . 7 5 7 Average 253 | . 40 15 93 14 445 Maximum Alert Level 2 | . . . . . 2 Low Security (%) 50 | 100 100 100 100 100 3 Level 1 14 | . . . . . 27 Level 2 35 | . . . . . 68 Level 3 . | . . . . . . Level 4 . | . . . . . . Level 5 . | . . . . . . High Security . | . . . . . . Max Security . | . . . . . . Squads Dispatched 15 | . . . . . 15 Investigation 3 | . . . . . 3 Extermination . | . . . . . . Reinforcement 6 | . . . . . 6 Assault . | . . . . . . Garrison 6 | . . . . . 6 Intercept . | . . . . . . Searches Triggered . | . . . . . . Construction Impeded . | . . . . . . Haulers Reinforced . | . . . . . . Active Scanning Responses . | . . . . . . Cargo Convoy Interrupts . | . . . . . . Stealth | -11 -10 -10 -9 -9 -8 --------- Run | Scr Mat Min Mat Min Mat Distress Signals 3 | . . . 1 . 2 Communications Jammed . | . . . . . . Distress Signals . | . . . . . . Times Spotted 112 | . 9 . 23 16 64 Peak Tracking Total 8 | . 5 . 7 8 7 Tactical Retreats 7 | . 2 . 2 1 2 Traps | -11 -10 -10 -9 -9 -8 ------- Run | Scr Mat Min Mat Min Mat Traps Triggered 1 | . . . . . 1 Indirectly . | . . . . . . Trap Hack Attempts . | . . . . . . Triggered . | . . . . . . Disarmed . | . . . . . . Reprogrammed . | . . . . . . Reused . | . . . . . . Traps Extracted . | . . . . . . Installed . | . . . . . . Triggered . | . . . . . . Machines | -11 -10 -10 -9 -9 -8 ---------- Run | Scr Mat Min Mat Min Mat Machines Disabled 1 | . . . . . 1 Max in Single Turn 1 | . . . . . 1 Machines Sabotaged . | . . . . . . Garrisons Compromised . | . . . . . . Overloaded Fab Kills . | . . . . . . Hacking | -11 -10 -10 -9 -9 -8 --------- Run | Scr Mat Min Mat Min Mat Machines Accessed 10 | . . . 2 . 8 Terminals 7 | . . . 2 . 5 Fabricators . | . . . . . . Repair Stations 2 | . . . . . 2 Recycling Units . | . . . . . . Scanalyzers 1 | . . . . . 1 Garrison Access . | . . . . . . Total Hacks 30 | . . . 7 . 23 Successful 16 | . . . 4 . 12 Failed 14 | . . . 3 . 11 Catastrophic 2 | . . . . . 2 Database Lockouts . | . . . . . . Manual 23 | . . . 7 . 16 Terminals 23 | . . . 7 . 16 Fabricators . | . . . . . . Repair Stations 4 | . . . . . 4 Recycling Units . | . . . . . . Scanalyzers 3 | . . . . . 3 Garrison Access . | . . . . . . Terminal Hacks 4 | . . . 2 . 2 Part Schematic 1 | . . . . . 1 Branch Access Points 2 | . . . 1 . 1 Unreport Threat 1 | . . . 1 . . Fabricator Hacks . | . . . . . . Repair Station Hacks 4 | . . . . . 4 Scan Component 2 | . . . . . 2 Repair 2 | . . . . . 2 Recycling Unit Hacks . | . . . . . . Scanalyzer 2 | . . . . . 2 Insert Component 1 | . . . . . 1 Analyze 1 | . . . . . 1 Garrison Access Hacks . | . . . . . . Unauthorized Hacks 6 | . . . 2 . 4 Terminals 6 | . . . 2 . 4 Botnet 6 | . . . 2 . 4 Fabricators . | . . . . . . Repair Stations . | . . . . . . Recycling Units . | . . . . . . Scanalyzers . | . . . . . . Garrison Access . | . . . . . . Data Cores Recovered . | . . . . . . Used . | . . . . . . Hacking Detections 8 | . . . 1 . 7 Full Trace Events 2 | . . . . . 2 Feedback Events . | . . . . . . Feedback Blocked . | . . . . . . Robot Schematics Acquired . | . . . . . . Robots Built . | . . . . . . Authchips . | . . . . . . Time . | . . . . . . Total Robot Build Rating . | . . . . . . Part Schematics Acquired 1 | . . . . . 1 Parts Built . | . . . . . . Authchips . | . . . . . . Time . | . . . . . . Total Part Build Rating . | . . . . . . Parts Repaired 2 | . . . . . 2 Time 64 | . . . . . 64 Parts Recycled . | . . . . . . Recycled Matter . | . . . . . . Retrieved Matter . | . . . . . . Retrieved Components . | . . . . . . Parts Scanalyzed 1 | . . . . . 1 Part Schematics Acquired . | . . . . . . Parts Damaged . | . . . . . . Bothacking | -11 -10 -10 -9 -9 -8 ------------ Run | Scr Mat Min Mat Min Mat Used RIF Installer . | . . . . . . Robots Hacked . | . . . . . . Non-combat . | . . . . . . Combat . | . . . . . . Robot Hacks Applied . | . . . . . . Relay Couplers Released . | . . . . . . Fabnet Peak Effective % . | . . . . . . Robots Rewired . | . . . . . . Allies Hacked . | . . . . . . Hacks Repelled . | . . . . . . Allies | -11 -10 -10 -9 -9 -8 -------- Run | Scr Mat Min Mat Min Mat Total Allies . | . . . . . . Largest Group . | . . . . . . Highest-Rated Group . | . . . . . . Highest-Rated Ally . | . . . . . . Total Orders . | . . . . . . Ally Attacks . | . . . . . . Total Damage . | . . . . . . Kills . | . . . . . . Allies Corrupted . | . . . . . . Allies Melted . | . . . . . . Intel | -11 -10 -10 -9 -9 -8 ------- Run | Scr Mat Min Mat Min Mat Robot Analysis Total . | . . . . . . Derelict Logs Recovered 2 | . . 2 . . . Drone Launches . | . . . . . . Drone Recoveries . | . . . . . . Exploration | -11 -10 -10 -9 -9 -8 ------------- Run | Scr Mat Min Mat Min Mat Turns Passed 4074 | 80 427 387 842 252 2086 Spaces Moved 1709 | 45 212 219 362 104 767 Core 5 | 5 . . . . . Treads 1677 | 40 212 219 335 104 767 Legs 27 | . . . 27 . . Wheels . | . . . . . . Hover . | . . . . . . Flight . | . . . . . . Fastest Speed 50 | 50 160 160 160 170 160 Average Speed 174 | 147 160 160 170 170 186 Slowest Speed 260 | 160 160 160 260 170 250 Overloaded Moves . | . . . . . . Propulsion Burnouts . | . . . . . . Robots Hopped . | . . . . . . Cave-ins Triggered . | . . . . . . Exploration Rate (%) 33 | 4 31 51 27 26 64 Regions Visited 5 Branch Regions 2 Pre-discovered Areas 2 | . . 2 . . . Known Exits Taken 3 | . 1 1 1 . . Unknown Exits Taken 2 | 1 . . . 1 . Scrap Searched 2 | . . 1 . 1 . Spaces Dug . | . . . . . . Terrain Destroyed 54 | . . . . 10 44 Melee . | . . . . . . Projectile 37 | . . . . 10 27 AOE 17 | . . . . . 17 Terrain Rammed . | . . . . . . Walls Destroyed . | . . . . . . Machines Disabled . | . . . . . . Actions | -11 -10 -10 -9 -9 -8 --------- Run | Scr Mat Min Mat Min Mat Total 2324 | 56 253 239 490 137 1149 Wait 144 | . 6 5 26 10 97 Move 1704 | 44 211 218 361 103 767 Hop . | . . . . . . Pick Up 48 | 6 5 2 6 1 28 Fast Attach 34 | 6 1 1 7 1 18 Attach 28 | . 1 . 5 . 22 Detach 9 | . . . 1 . 8 Swap 21 | . 1 . 9 . 11 Drop 37 | . 2 3 16 1 15 Fire 297 | . 26 10 58 21 182 Melee . | . . . . . . Ram . | . . . . . . Kick . | . . . . . . Crush 2 | . . . 1 . 1 Escape Stasis . | . . . . . . Rewire . | . . . . . . Trap . | . . . . . . Miscellaneous . | . . . . . . Route ------- -11/Scrapyard -10/Materials -10/Mines (discovered 2 exits: *Mat x2) -9/Materials (discovered 3 exits: *Mat / *Min x2) -9/Mines -8/Materials History --------- Turn | Location | Event 6 | -11/Scrapyard | Discovered new exit (range 16) 81 | -11/Scrapyard | Entered Materials 308 | -10/Materials | Build established: Mutant 487 | -10/Materials | Discovered new exit (range 13) 506 | -10/Materials | Identified exit to Mines 508 | -10/Materials | Entered Mines 535 | -10/Mines | Discovered new exit (range 12) 541 | -10/Mines | Met a Derelict bent on vengeance 564 | -10/Mines | Identified exit to Materials 590 | -10/Mines | Discovered exit to Materials (range 16) 668 | -10/Mines | Learned location of Storage (-7) 895 | -10/Mines | Entered Materials 895 | -9/Materials | Evolved 2 slots: Utility x2 1273 | -9/Materials | Discovered new exit (range 14) 1399 | -9/Materials | Identified exit to Mines 1737 | -9/Materials | Entered Mines 1761 | -9/Mines | Assembled infested the area 1856 | -9/Mines | Destroyed 12 combat bots 1953 | -9/Mines | Discovered new exit (range 16) 1989 | -9/Mines | Entered Materials 1989 | -8/Materials | Evolved 2 slots: Utility x2 2085 | -8/Materials | Destroyed 7 combat bots 2445 | -8/Materials | Lost 3 parts (3u) 2672 | -8/Materials | Garrison activated, responded to threat 2722 | -8/Materials | Core integrity fell below 50% 2755 | -8/Materials | Lost 6 parts (1p1n1u3w) 2829 | -8/Materials | Build established: Scavenger-Mutant 3036 | -8/Materials | Repaired Imp. Terrain Scanner 3128 | -8/Materials | Garrison activated, responded to threat 3228 | -8/Materials | Lost 4 parts (1p1u2w) 3282 | -8/Materials | Core integrity fell below 20% 3771 | -8/Materials | Build established: Mutant 3856 | -8/Materials | Repaired Lgt. Treads 4075 | -8/Materials | Destroyed by G-47 Trooper with Particle Gun Last Messages --------------- 03798_ K-01 Serf collects debris. 03805_ Acquired 57 matter. 03806_ K-01 Serf collects debris. 03830_ Connecting with Repair Station... >>Scan(Lgt. Treads) Scanning Lgt. Treads... Ready to Repair: Lgt. Treads Rating: 1 Time: 26 >>Repair Repairing Lgt. Treads... ETC: 26 03856_ Repair station completes Lgt. Treads repairs. 03856_ Acquired Lgt. Treads. 03857_ Connecting with Repair Station... 04020_ O-16 Technician: "IFF HANDSHAKE FAILED. SECURING TERMINAL." 04032_ ALERT: Hostiles spotted, dispatching reinforcements to Terminal M003. 04036_ Connecting with Terminal... Map ----- +----------------------------------------------------+ | ?# + """ #???????# ???????????# "#?????? | | ?# #### """ #???????# ???????????# ##?????? | | ## #??? ????????# ???????????# #??????? | | #???? #??????## ##?????????# #??????? | | #???#######??????# #?????????# #??????? | | ### ! #??????## #?????????# #??????? | | # #??????? ########### #??????? | | " """"?????????# ## / #??????? | | # """"?????????# ## = # #??????? | | # """" #???????# ## # #??????? | | ## # #??????## ## """ # #??????? | | ## ######+######+### # """"" # #??????? | | "" # """"" # #??????? | | ^ T + """"" # #??????? | | # """ # #??????? | | ## ######+########## # # #??????? | | #????????????## ########### #??????? | | #?????????????# #?????????#+##+###????? | | #?????????????# #?????????# #????? | | #?????????????# +?????????# """#????? | | #?????????????# #?????????#" """#????? | | #?????????????# #?????????#T """#????? | | #######?????????????# ########??#" #????? | | ????????????????????# # #??# ! #????? | | ?????????????????#### # ! #??########????? | | ????????????????##!! #@ #??????????????? | | ????????????????#! g "" #??????????????? | | ????????????????#! g# S"" #??????????????? | | ?#??????????????#! # "" *#??????????????? | | ????????????????#! ########??????????????? | | ????????????????##!! ?????????????????????? | | ?????????????????#### ?????????????????????? | | ????????????????????# ?????????????????????? | | ????????????????????# ?????????????????????? | | ???????????????????? ?????????????????????? | | ????????????????????![[]]#????????????????????? | | ????????????????????![[]]#????????????????????? | | ???????????????????######?????????????????????? | | ??????????????????????????????????????????????? | | | | | | | | | | | | | | | | | | | | | | | +----------------------------------------------------+ Best States ------------- Heat Dissipation 73 Energy Generation 14 Energy Capacity 265 Matter Stores 300 Matter Capacity 300 Sight Range 16 Robot Scan Range 15 Terrain Scan Range 16 Terrain Scan Density 210 Armor Coverage 225 Propulsion Shielding 33 Weapon Shielding 66 Weapon Cycling 15 Evasion (%) 40 Recoil Reduction 2 Item Schematics ----------------- Arm. Treads | -8/Materials | Hacked Robot Schematics ------------------ None Fabricated ------------ Nothing Alien Tech Used ----------------- None Achievements -------------- Exterminator Challenges ------------ None Game ------ Seed MatterNuclearGun Manual? 0 Play Time 00:58:39 Cumulative 68.0 hours Start 2022.06.02 @ 18:23:51 End 2022.06.03 @ 17:47:27 Sessions 3 Manual Loads 0 Difficulty Rogue Special Mode None Game No. 48 Rogue 29 Adventurer 16 Explorer 3 Win Type - Total 2 Types 2/0/0/0/0/0/0/0/0 Lore% 40 Gallery% 47 Achievement% 39 Wizard Run 0 Options --------- ASCII 1 Keyboard 1 Movement Numpad Keybinds 0 Fullscreen 1 Font 18/TerminusBold Map View 76x50 Tactical HUD 1 Map Filters NONE Filters NONE Steam X RUN: c11a3042-63a2-4c7b-8e00-b63b885707bc